fUSD/lending_fUSD_20250507
["ID","MTS","AMOUNT","RATE_DAILY","PERIOD"]
[360210239,1746625859319,-450.0,0.00019995,2]
[360210240,1746625859329,-151.0,0.00019995,2]
[360210241,1746625859339,-450.0,0.00019995,2]
[360210242,1746625859348,-450.0,0.00019995,2]
[360210243,1746625859358,-150.0,0.00019995,2]
[360210244,1746625859367,-981.904133,0.00019995,2]
[360210245,1746625859377,-981.904133,0.00019995,2]
[360210246,1746625859386,-397.40768691,0.00019995,2]
[360210247,1746625859395,-291.43562643,0.00019995,2]
[360210248,1746625859405,-165.692413,0.00019995,2]
[360210249,1746625859414,-885.02,0.00019995,2]
[360210250,1746625859424,-450.0,0.00019995,2]
[360210251,1746625859434,-450.0,0.00019995,2]
[360210252,1746625859443,-450.0,0.00019995,2]
[360210253,1746625859452,-450.0,0.00019995,2]
[360210254,1746625859461,-450.0,0.00019995,2]
[360210255,1746625859471,-450.0,0.00019995,2]
[360210256,1746625859481,-450.0,0.00019995,2]
[360210257,1746625859490,-450.0,0.00019995,2]
[360210258,1746625859500,-762.577725,0.00019995,2]
[360210259,1746625859510,-450.0,0.00019995,2]
[360210260,1746625859519,-762.57773,0.00019995,2]
[360210261,1746625859529,-151.0,0.00019995,2]
[360210262,1746625859539,-196.04,0.00019995,2]
[360210263,1746625859548,-500.0,0.00019995,2]
[360210264,1746625859558,-436.90000002,0.00019995,2]
[360210265,1746625859567,-450.0,0.00019995,2]
[360210266,1746625859577,-450.0,0.00019995,2]
[360210267,1746625859586,-450.0,0.00019995,2]
[360210268,1746625859596,-450.0,0.00019995,2]
[360210269,1746625859606,-450.0,0.00019995,2]
[360210270,1746625859616,-450.0,0.00019995,2]
[360210271,1746625859626,-450.0,0.00019995,2]
[360210272,1746625859635,-2107.13,0.00019995,2]
[360210273,1746625859645,-450.0,0.00019995,2]
[360210274,1746625859654,-453.48,0.00019995,2]
[360210275,1746625859664,-450.0,0.00019995,2]
[360210276,1746625859674,-450.0,0.00019995,2]
[360210277,1746625859686,-515.78,0.00019995,2]
[360210278,1746625859696,-450.0,0.00019995,2]
[360210279,1746625859705,-450.0,0.00019995,2]
[360210280,1746625859716,-450.0,0.00019995,2]
[360210281,1746625859727,-488.38,0.00019995,2]
[360210282,1746625859738,-450.0,0.00019995,2]
[360210283,1746625859748,-450.0,0.00019995,2]
[360210284,1746625859758,-502.46,0.00019995,2]
[360210285,1746625859767,-519.12,0.00019995,2]
[360210286,1746625859776,-519.12,0.00019995,2]
[360210287,1746625859786,-450.0,0.00019995,2]
[360210288,1746625859795,-450.0,0.00019995,2]
[360210289,1746625859805,-450.0,0.00019995,2]
[360210290,1746625859816,-450.0,0.00019995,2]
[360210291,1746625859826,-450.0,0.00019995,2]
[360210292,1746625859835,-300.0,0.00019995,2]
[360210293,1746625859845,-152.027785,0.00019996,2]
[360210294,1746625859855,-559.56,0.00019996,2]
[360210295,1746625859865,-213.451662,0.00019996,2]
[360210296,1746625859874,-213.451662,0.00019996,2]
[360210297,1746625859884,-151.0,0.00019996,2]
[360210298,1746625859895,-151.0,0.00019996,2]
[360210299,1746625859904,-151.0,0.00019996,2]
[360210300,1746625859914,-151.0,0.00019996,2]
[360210301,1746625859929,-1201.18,0.00019996,2]
[360210302,1746625859939,-450.0,0.00019996,2]
[360210303,1746625859948,-450.0,0.00019996,2]
[360210304,1746625859957,-77.56447028,0.00019996,2]
[360210305,1746625859974,-372.43552972,0.00019996,2]
[360210306,1746625859983,-554.96257533,0.00019996,2]
[360210307,1746625859992,-450.0,0.00019996,2]
[360210308,1746625860004,-450.0,0.00019996,2]
[360210309,1746625860015,-322.60188495,0.00019996,2]
[360210310,1746625860026,-127.39811505,0.00019996,2]
[360210311,1746625860036,-450.0,0.00019996,2]
[360210312,1746625860046,-527.41678442,0.00019996,2]
[360210313,1746625860055,-207.664031,0.00019996,2]
[360210314,1746625860065,-207.664031,0.00019996,2]
[360210315,1746625860074,-207.664031,0.00019996,2]
[360210316,1746625860084,-207.664031,0.00019996,2]
[360210317,1746625860094,-450.0,0.00019996,2]
[360210318,1746625860103,-429.61194338,0.00019996,2]
[360210319,1746625860112,-450.0,0.00019996,2]
[360210320,1746625860122,-450.0,0.00019996,2]
[360210321,1746625860130,-450.0,0.00019996,2]
[360210322,1746625860139,-200.23,0.00019996,2]
[360210323,1746625860149,-550.4898764,0.00019996,2]
[360210324,1746625860159,-238.51214933,0.00019996,2]
[360210325,1746625860168,-451.61,0.00019996,2]
[360210326,1746625860177,-540.23,0.00019996,2]
[360210327,1746625860186,-335.04,0.00019996,2]
[360210328,1746625860195,-450.0,0.00019996,2]
[360210329,1746625860205,-450.0,0.00019996,2]
[360210330,1746625860215,-450.0,0.00019996,2]
[360210331,1746625860224,-450.0,0.00019996,2]
[360210332,1746625860234,-450.0,0.00019996,2]
[360210333,1746625860244,-251.06,0.00019996,2]
[360210334,1746625860255,-450.0,0.00019996,2]
[360210335,1746625860264,-296.83003924,0.00019996,2]
[360210336,1746625860274,-450.0,0.00019996,2]
[360210337,1746625860284,-596.58,0.00019996,2]
[360210338,1746625860294,-301.24,0.00019996,2]
[360210339,1746625860304,-450.0,0.00019996,2]
[360210340,1746625860313,-450.0,0.00019996,2]
[360210341,1746625860322,-513.05,0.00019996,2]
[360210342,1746625860331,-343.62,0.00019996,2]
[360210343,1746625860341,-450.0,0.00019996,2]
[360210344,1746625860350,-450.0,0.00019996,2]
[360210345,1746625860359,-151.0,0.00019996,2]
[360210346,1746625860368,-450.0,0.00019996,2]
[360210347,1746625860378,-450.0,0.00019996,2]
[360210348,1746625860387,-450.0,0.00019996,2]
[360210349,1746625860396,-450.0,0.00019996,2]
[360210350,1746625860405,-450.0,0.00019996,2]
[360210351,1746625860415,-209.94303806,0.00019996,2]
[360210352,1746625860427,-981.904133,0.00019996,2]
[360210353,1746625860437,-981.904133,0.00019996,2]
[360210354,1746625860446,-450.0,0.00019996,2]
[360210355,1746625860455,-572.29,0.00019996,2]
[360210356,1746625860464,-450.0,0.00019996,2]
[360210357,1746625860473,-450.0,0.00019996,2]
[360210358,1746625860484,-450.0,0.00019996,2]
[360210359,1746625860493,-450.0,0.00019996,2]
[360210360,1746625860505,-450.0,0.00019996,2]
[360210361,1746625860514,-885.02,0.00019996,2]
[360210362,1746625860523,-885.02,0.00019996,2]
[360210363,1746625860532,-450.0,0.00019996,2]
[360210364,1746625860542,-450.0,0.00019996,2]
[360210365,1746625860552,-450.0,0.00019996,2]
[360210366,1746625860562,-1500.0,0.00019996,7]
[360210367,1746625860571,-1500.0,0.00019996,7]
[360210368,1746625860580,-1500.0,0.00019996,7]
[360210369,1746625860589,-1500.0,0.00019996,7]
[360210370,1746625860599,-1500.0,0.00019996,7]
[360210371,1746625860609,-1500.0,0.00019996,7]
[360210372,1746625860618,-1500.0,0.00019996,7]
[360210373,1746625860628,-1500.0,0.00019996,7]
[360210374,1746625860637,-1500.0,0.00019996,7]
[360210375,1746625860647,-1500.0,0.00019996,7]
[360210376,1746625860656,-1500.0,0.00019996,7]
[360210377,1746625860665,-450.0,0.00019996,2]
[360210378,1746625860681,-1500.0,0.00019996,7]
[360210379,1746625860690,-1500.0,0.00019996,7]
[360210380,1746625860700,-1500.0,0.00019996,7]
[360210381,1746625860709,-1928.56,0.00019996,2]
[360210382,1746625860719,-1500.0,0.00019996,7]
[360210383,1746625860728,-1500.0,0.00019996,7]
[360210384,1746625860737,-1500.0,0.00019996,7]
[360210385,1746625860747,-1500.0,0.00019996,7]
[360210386,1746625860756,-1500.0,0.00019996,7]
[360210387,1746625860765,-1500.0,0.00019996,7]
[360210388,1746625860775,-1159.780091,0.00019996,7]
[360210389,1746625860784,-450.0,0.00019996,2]
[360210390,1746625860793,-450.0,0.00019996,2]
[360210391,1746625860803,-450.0,0.00019996,2]
[360210392,1746625860813,-475.622608,0.00019996,2]
[360210393,1746625860823,-34179.84,0.00019996,2]
[360210394,1746625860834,-34179.84,0.00019996,2]
[360210395,1746625860844,-450.0,0.00019996,2]
[360210396,1746625860853,-450.0,0.00019996,2]
[360210397,1746625860862,-4173.24,0.00019996,2]
[360210398,1746625860872,-450.0,0.00019996,2]
[360210399,1746625860881,-450.0,0.00019996,2]
[360210400,1746625860891,-3281.43,0.00019996,2]
[360210401,1746625860900,-450.0,0.00019996,2]
[360210402,1746625860909,-450.0,0.00019996,2]
[360210403,1746625860923,-450.0,0.00019996,2]
[360210404,1746625860934,-450.0,0.00019996,2]
[360210405,1746625860943,-700.52,0.00019996,2]
[360210406,1746625860953,-700.52,0.00019996,2]
[360210407,1746625860963,-236.05190132,0.00019996,2]
[360210408,1746625860973,-450.0,0.00019996,2]
[360210409,1746625860983,-310.76,0.00019996,2]
[360210410,1746625860992,-1424.8,0.00019996,2]
[360210411,1746625861003,-303.39682808,0.00019996,2]
[360210412,1746625861013,-450.0,0.00019996,2]
[360210413,1746625861022,-2107.13,0.00019996,2]
[360210414,1746625861032,-2107.13,0.00019996,2]
[360210415,1746625861041,-336.28060524,0.00019996,2]
[360210416,1746625861051,-450.0,0.00019996,2]
[360210417,1746625861060,-252.72,0.00019996,2]
[360210418,1746625861070,-538.22,0.00019996,2]
[360210419,1746625861080,-538.22,0.00019996,2]
[360210420,1746625861090,-450.0,0.00019996,2]
[360210421,1746625861099,-450.0,0.00019996,2]
[360210422,1746625861109,-355.92,0.00019996,2]
[360210423,1746625861118,-450.0,0.00019996,2]
[360210424,1746625861127,-450.0,0.00019996,2]
[360210425,1746625861137,-450.0,0.00019996,2]
[360210426,1746625861147,-450.0,0.00019996,2]
[360210427,1746625861157,-4483.06,0.00019996,2]
[360210428,1746625861168,-1017.76,0.00019996,2]
[360210429,1746625861179,-1017.76,0.00019996,2]
[360210430,1746625861188,-450.0,0.00019996,2]
[360210431,1746625861198,-576.21,0.00019996,2]
[360210432,1746625861208,-1688.67,0.00019996,2]
[360210433,1746625861217,-1688.67,0.00019996,2]
[360210434,1746625861228,-450.0,0.00019996,2]
[360210435,1746625861238,-450.0,0.00019996,2]
[360210436,1746625861247,-25732.11,0.00019996,2]
[360210437,1746625861257,-25732.11,0.00019996,2]
[360210438,1746625861267,-450.0,0.00019996,2]
[360210439,1746625861276,-450.0,0.00019996,2]
[360210440,1746625861288,-450.0,0.00019996,2]
[360210441,1746625861298,-450.0,0.00019996,2]
[360210442,1746625861308,-450.0,0.00019996,2]
[360210443,1746625861317,-450.0,0.00019996,2]
[360210444,1746625861327,-450.0,0.00019996,2]
[360210445,1746625861336,-300.0,0.00019996,2]
[360210446,1746625861346,-220.78384465,0.00019996,2]
[360210447,1746625861355,-208.101416,0.00019997,2]
[360210448,1746625861365,-213.451662,0.00019997,2]
[360210449,1746625861374,-213.451662,0.00019997,2]
[360210450,1746625861384,-151.0,0.00019997,2]
[360210451,1746625861394,-199.325324,0.00019997,2]
[360210452,1746625861404,-1201.18,0.00019997,2]
[360210453,1746625861414,-1201.18,0.00019997,2]
[360210454,1746625861426,-387.2,0.00019997,2]
[360210455,1746625861435,-207.664031,0.00019997,2]
[360210456,1746625861446,-207.664031,0.00019997,2]
[360210457,1746625861455,-476.38,0.00019997,2]
[360210458,1746625861465,-364.95,0.00019997,2]
[360210459,1746625861475,-382.52,0.00019997,2]
[360210460,1746625861484,-450.0,0.00019997,2]
[360210461,1746625861494,-450.0,0.00019997,2]
[360210462,1746625861503,-450.0,0.00019997,2]
[360210463,1746625861513,-450.0,0.00019997,2]
[360210464,1746625861523,-151.0,0.00019997,2]
[360210465,1746625861532,-364.97,0.00019997,2]
[360210466,1746625861542,-596.40690137,0.00019997,2]
[360210467,1746625861551,-450.0,0.00019997,2]
[360210468,1746625861561,-450.0,0.00019997,2]
[360210469,1746625861570,-450.0,0.00019997,2]
[360210470,1746625861751,-450.0,0.00019997,2]
[360210471,1746625861762,-981.904133,0.00019997,2]
[360210472,1746625861772,-981.904133,0.00019997,2]
[360210473,1746625861782,-450.0,0.00019997,2]
[360210474,1746625861791,-450.0,0.00019997,2]
[360210475,1746625861801,-546.99274835,0.00019997,2]
[360210476,1746625861811,-450.0,0.00019997,2]
[360210477,1746625861820,-403.52019394,0.00019997,2]
[360210478,1746625861830,-885.02,0.00019997,2]
[360210479,1746625861839,-226.74,0.00019997,2]
[360210480,1746625861850,-450.0,0.00019997,2]
[360210481,1746625861859,-450.0,0.00019997,2]
[360210482,1746625861870,-450.0,0.00019997,2]
[360210483,1746625861879,-450.0,0.00019997,2]
[360210484,1746625861889,-1928.56,0.00019997,2]
[360210485,1746625861898,-1928.56,0.00019997,2]
[360210486,1746625861908,-450.0,0.00019997,2]
[360210487,1746625861919,-450.0,0.00019997,2]
[360210488,1746625861933,-150.0,0.00019997,2]
[360210489,1746625861942,-450.0,0.00019997,2]
[360210490,1746625861953,-450.0,0.00019997,2]
[360210491,1746625861963,-450.0,0.00019997,2]
[360210492,1746625861973,-450.0,0.00019997,2]
[360210493,1746625861984,-319.37473416,0.00019997,2]
[360210494,1746625861994,-34179.84,0.00019997,2]
[360210495,1746625862006,-33215.79689077,0.00019997,2]
[360210496,1746625862022,-964.04310923,0.00019997,2]
[360210497,1746625862032,-387.68864713,0.00019997,2]
[360210498,1746625862041,-2031.26704384,0.00019997,2]
[360210499,1746625862053,-2141.97295616,0.00019997,2]
[360210500,1746625862063,-4173.24,0.00019997,2]
[360210501,1746625862072,-450.0,0.00019997,2]
[360210502,1746625862082,-450.0,0.00019997,2]
[360210503,1746625862093,-450.0,0.00019997,2]
[360210504,1746625862102,-3281.43,0.00019997,2]
[360210505,1746625862112,-3281.43,0.00019997,2]
[360210506,1746625862121,-450.0,0.00019997,2]
[360210507,1746625862131,-450.0,0.00019997,2]
[360210508,1746625862140,-450.0,0.00019997,2]
[360210509,1746625862150,-339.16,0.00019997,2]
[360210510,1746625862160,-450.0,0.00019997,2]
[360210511,1746625862169,-500.0,0.00019997,2]
[360210512,1746625862179,-500.0,0.00019997,2]
[360210513,1746625862189,-700.52,0.00019997,2]
[360210514,1746625862199,-700.52,0.00019997,2]
[360210515,1746625862209,-450.0,0.00019997,2]
[360210516,1746625862218,-450.0,0.00019997,2]
[360210517,1746625862228,-450.0,0.00019997,2]
[360210518,1746625862238,-1424.8,0.00019997,2]
[360210519,1746625862247,-450.0,0.00019997,2]
[360210520,1746625862256,-450.0,0.00019997,2]
[360210521,1746625862266,-501.38436586,0.00019997,2]
[360210522,1746625862276,-450.0,0.00019997,2]
[360210523,1746625862286,-450.0,0.00019997,2]
[360210524,1746625862295,-450.0,0.00019997,2]
[360210525,1746625862306,-2107.13,0.00019997,2]
[360210526,1746625862316,-450.0,0.00019997,2]
[360210527,1746625862325,-450.0,0.00019997,2]
[360210528,1746625862334,-538.22,0.00019997,2]
[360210529,1746625862344,-538.22,0.00019997,2]
[360210530,1746625862353,-515.78,0.00019997,2]
[360210531,1746625862362,-515.78,0.00019997,2]
[360210532,1746625862372,-516.87,0.00019997,2]
[360210533,1746625862381,-450.0,0.00019997,2]
[360210534,1746625862391,-473.35,0.00019997,2]
[360210535,1746625862401,-450.0,0.00019997,2]
[360210536,1746625862412,-450.0,0.00019997,2]
[360210537,1746625862423,-450.0,0.00019997,2]
[360210538,1746625862433,-450.0,0.00019997,2]
[360210539,1746625862442,-450.0,0.00019997,2]
[360210540,1746625862452,-450.0,0.00019997,2]
[360210541,1746625862465,-450.0,0.00019997,2]
[360210542,1746625862475,-450.0,0.00019997,2]
[360210543,1746625862485,-4483.06,0.00019997,2]
[360210544,1746625862494,-1017.76,0.00019997,2]
[360210545,1746625862504,-1017.76,0.00019997,2]
[360210546,1746625862514,-519.12,0.00019997,2]
[360210547,1746625862524,-1688.67,0.00019997,2]
[360210548,1746625862533,-1688.67,0.00019997,2]
[360210549,1746625862543,-450.0,0.00019997,2]
[360210550,1746625862553,-25732.11,0.00019997,2]
[360210551,1746625862562,-25732.11,0.00019997,2]
[360210552,1746625862572,-450.0,0.00019997,2]
[360210553,1746625862581,-450.0,0.00019997,2]
[360210554,1746625862591,-401.4,0.00019997,2]
[360210555,1746625862600,-150.0,0.00019997,2]
[360210556,1746625862611,-450.0,0.00019997,2]
[360210557,1746625862620,-213.451662,0.00019998,2]
[360210558,1746625862630,-213.451662,0.00019998,2]
[360210559,1746625862639,-213.451662,0.00019998,2]
[360210560,1746625862649,-213.451662,0.00019998,2]
[360210561,1746625862659,-213.451662,0.00019998,2]
[360210562,1746625862669,-213.451662,0.00019998,2]
[360210563,1746625862679,-151.0,0.00019998,2]
[360210564,1746625862688,-151.0,0.00019998,2]
[360210565,1746625862698,-151.0,0.00019998,2]
[360210566,1746625862707,-151.0,0.00019998,2]
[360210567,1746625862717,-151.0,0.00019998,2]
[360210568,1746625862726,-151.0,0.00019998,2]
[360210569,1746625862736,-1201.18,0.00019998,2]
[360210570,1746625862746,-1201.18,0.00019998,2]
[360210571,1746625862756,-1201.18,0.00019998,2]
[360210572,1746625862765,-1201.18,0.00019998,2]
[360210573,1746625862775,-207.664031,0.00019998,2]
[360210574,1746625862785,-207.664031,0.00019998,2]
[360210575,1746625862794,-207.664031,0.00019998,2]
[360210576,1746625862803,-207.664031,0.00019998,2]
[360210577,1746625862812,-450.0,0.00019998,2]
[360210578,1746625862821,-436.40417188,0.00019998,2]
[360210579,1746625862831,-450.0,0.00019998,2]
[360210580,1746625862840,-450.0,0.00019998,2]
[360210581,1746625862850,-450.0,0.00019998,2]
[360210582,1746625862859,-450.0,0.00019998,2]
[360210583,1746625862869,-178.86438454,0.00019998,2]
[360210584,1746625862878,-527.74296198,0.00019998,2]
[360210585,1746625862887,-981.904133,0.00019998,2]
[360210586,1746625862896,-981.90413,0.00019998,2]
[360210587,1746625862906,-450.0,0.00019998,2]
[360210588,1746625862916,-450.0,0.00019998,2]
[360210589,1746625862929,-450.0,0.00019998,2]
[360210590,1746625862938,-450.0,0.00019998,2]
[360210591,1746625862948,-885.02,0.00019998,2]
[360210592,1746625862958,-885.02,0.00019998,2]
[360210593,1746625862970,-885.02,0.00019998,2]
[360210594,1746625862980,-885.02,0.00019998,2]
[360210595,1746625862990,-450.0,0.00019998,2]
[360210596,1746625863000,-450.0,0.00019998,2]
[360210597,1746625863010,-450.0,0.00019998,2]
[360210598,1746625863020,-450.0,0.00019998,2]
[360210599,1746625863029,-1928.56,0.00019998,2]
[360210600,1746625863039,-1928.56,0.00019998,2]
[360210601,1746625863048,-1928.56,0.00019998,2]
[360210602,1746625863058,-1928.56,0.00019998,2]
[360210603,1746625863068,-450.0,0.00019998,2]
[360210604,1746625863078,-450.0,0.00019998,2]
[360210605,1746625863087,-499.07559171,0.00019998,2]
[360210606,1746625863097,-450.0,0.00019998,2]
[360210607,1746625863107,-450.0,0.00019998,2]
[360210608,1746625863117,-450.0,0.00019998,2]
[360210609,1746625863126,-450.0,0.00019998,2]
[360210610,1746625863136,-450.0,0.00019998,2]
[360210611,1746625863146,-450.0,0.00019998,2]
[360210612,1746625863156,-450.0,0.00019998,2]
[360210613,1746625863166,-450.0,0.00019998,2]
[360210614,1746625863178,-34179.84,0.00019998,2]
[360210615,1746625863188,-34179.84,0.00019998,2]
[360210616,1746625863199,-34179.84,0.00019998,2]
[360210617,1746625863209,-4173.24,0.00019998,2]
[360210618,1746625863219,-4173.24,0.00019998,2]
[360210619,1746625863229,-4173.24,0.00019998,2]
[360210620,1746625863240,-4173.24,0.00019998,2]
[360210621,1746625863250,-450.0,0.00019998,2]
[360210622,1746625863260,-450.0,0.00019998,2]
[360210623,1746625863270,-450.0,0.00019998,2]
[360210624,1746625863279,-450.0,0.00019998,2]
[360210625,1746625863290,-450.0,0.00019998,2]
[360210626,1746625863300,-450.0,0.00019998,2]
[360210627,1746625863311,-171.85108122,0.00019998,2]
[360210628,1746625863321,-3281.43,0.00019998,2]
[360210629,1746625863331,-3281.43,0.00019998,2]
[360210630,1746625863341,-450.0,0.00019998,2]
[360210631,1746625863351,-3281.43,0.00019998,2]
[360210632,1746625863361,-252.23894133,0.00019998,2]
[360210633,1746625863372,-3281.43,0.00019998,2]
[360210634,1746625863382,-450.0,0.00019998,2]
[360210635,1746625863393,-450.0,0.00019998,2]
[360210636,1746625863403,-450.0,0.00019998,2]
[360210637,1746625863414,-450.0,0.00019998,2]
[360210638,1746625863426,-575.01,0.00019998,2]
[360210639,1746625863436,-700.52,0.00019998,2]
[360210640,1746625863446,-700.52,0.00019998,2]
[360210641,1746625863458,-700.52,0.00019998,2]
[360210642,1746625863468,-450.0,0.00019998,2]
[360210643,1746625863478,-450.0,0.00019998,2]
[360210644,1746625863489,-164.51,0.00019998,2]
[360210645,1746625863499,-1424.8,0.00019998,2]
[360210646,1746625863510,-1424.8,0.00019998,2]
[360210647,1746625863520,-450.0,0.00019998,2]
[360210648,1746625863531,-1424.8,0.00019998,2]
[360210649,1746625863541,-1424.8,0.00019998,2]
[360210650,1746625863551,-575.22,0.00019998,2]
[360210651,1746625863561,-2107.13,0.00019998,2]
[360210652,1746625863571,-2107.13,0.00019998,2]
[360210653,1746625863580,-2107.13,0.00019998,2]
[360210654,1746625863590,-2107.13,0.00019998,2]
[360210655,1746625863599,-450.0,0.00019998,2]
[360210656,1746625863609,-450.0,0.00019998,2]
[360210657,1746625863620,-450.0,0.00019998,2]
[360210658,1746625863631,-156.22,0.00019998,2]
[360210659,1746625863640,-450.0,0.00019998,2]
[360210660,1746625863651,-538.22,0.00019998,2]
[360210661,1746625863661,-538.22,0.00019998,2]
[360210662,1746625863674,-538.22,0.00019998,2]
[360210663,1746625863684,-515.78,0.00019998,2]
[360210664,1746625863695,-515.78,0.00019998,2]
[360210665,1746625863704,-515.78,0.00019998,2]
[360210666,1746625863714,-515.78,0.00019998,2]
[360210667,1746625863724,-450.0,0.00019998,2]
[360210668,1746625863734,-450.0,0.00019998,2]
[360210669,1746625863744,-450.0,0.00019998,2]
[360210670,1746625863753,-450.0,0.00019998,2]
[360210671,1746625863764,-450.0,0.00019998,2]
[360210672,1746625863774,-450.0,0.00019998,2]
[360210673,1746625863784,-450.0,0.00019998,2]
[360210674,1746625863793,-450.0,0.00019998,2]
[360210675,1746625863804,-450.0,0.00019998,2]
[360210676,1746625863815,-450.0,0.00019998,2]
[360210677,1746625863825,-450.0,0.00019998,2]
[360210678,1746625863834,-450.0,0.00019998,2]
[360210679,1746625863844,-450.0,0.00019998,2]
[360210680,1746625863854,-450.0,0.00019998,2]
[360210681,1746625863864,-4483.06,0.00019998,2]
[360210682,1746625863873,-4483.06,0.00019998,2]
[360210683,1746625863883,-4483.06,0.00019998,2]
[360210684,1746625863893,-4483.06,0.00019998,2]
[360210685,1746625863903,-1017.76,0.00019998,2]
[360210686,1746625863913,-1017.76,0.00019998,2]
[360210687,1746625863927,-1017.76,0.00019998,2]
[360210688,1746625863937,-519.12,0.00019998,2]
[360210689,1746625863947,-519.12,0.00019998,2]
[360210690,1746625863958,-519.12,0.00019998,2]
[360210691,1746625863967,-519.12,0.00019998,2]
[360210692,1746625863977,-1688.67,0.00019998,2]
[360210693,1746625863986,-1688.67,0.00019998,2]
[360210694,1746625863997,-1688.67,0.00019998,2]
[360210695,1746625864007,-450.0,0.00019998,2]
[360210696,1746625864018,-450.0,0.00019998,2]
[360210697,1746625864027,-450.0,0.00019998,2]
[360210698,1746625864038,-450.0,0.00019998,2]
[360210699,1746625864047,-25732.11,0.00019998,2]
[360210700,1746625864057,-25732.11,0.00019998,2]
[360210701,1746625864067,-25732.11,0.00019998,2]
[360210702,1746625864076,-450.0,0.00019998,2]
[360210703,1746625864086,-450.0,0.00019998,2]
[360210704,1746625864098,-450.0,0.00019998,2]
[360210705,1746625864109,-450.0,0.00019998,2]
[360210706,1746625864119,-450.0,0.00019998,2]
[360210707,1746625864130,-450.0,0.00019998,2]
[360210708,1746625864140,-450.0,0.00019998,2]
[360210709,1746625864150,-450.0,0.00019998,2]
[360210710,1746625864161,-450.0,0.00019998,2]
[360210711,1746625864172,-450.0,0.00019998,2]
[360210712,1746625864182,-450.0,0.00019998,2]
[360210713,1746625864193,-20262.770772,0.00019999,2]
[360210714,1746625864203,-994.3672,0.00019999,2]
[360210715,1746625864213,-5800.0,0.00019999,2]
[360210716,1746625864223,-12500.0,0.00019999,2]
[360210717,1746625864232,-11084.50541883,0.00019999,2]
[360210718,1746625864243,-12500.0,0.00019999,2]
[360210719,1746625864253,-213.451662,0.00019999,2]
[360210720,1746625864263,-213.451662,0.00019999,2]
[360210721,1746625864273,-213.451662,0.00019999,2]
[360210722,1746625864283,-213.451662,0.00019999,2]
[360210723,1746625864293,-213.451662,0.00019999,2]
[360210724,1746625864303,-213.451663,0.00019999,2]
[360210725,1746625864314,-151.0,0.00019999,2]
[360210726,1746625864324,-81.2004965,0.00019999,2]
[360210727,1746625864339,-12418.7995035,0.00019999,2]
[360210728,1746625864349,-5800.0,0.00019999,2]
[360210729,1746625864360,-151.0,0.00019999,2]
[360210730,1746625864370,-1201.18,0.00019999,2]
[360210731,1746625864379,-1201.18,0.00019999,2]
[360210732,1746625864389,-1201.18,0.00019999,2]
[360210733,1746625864399,-1201.18,0.00019999,2]
[360210734,1746625864408,-1201.18,0.00019999,2]
[360210735,1746625864418,-1201.18,0.00019999,2]
[360210736,1746625864428,-1201.18,0.00019999,2]
[360210737,1746625864438,-1201.18,0.00019999,2]
[360210738,1746625864448,-1201.18,0.00019999,2]